{"text_format":"1","workbook":"xlsx","n_sheets":2,"sheets":["Лист2","Лист1"],"not_rendered":{"charts":0,"images":1,"macros":1,"external_links":1,"defined_names":5,"comments":0,"pivot_tables":0},"unopened":[],"bounds":{"document_bytes":16777216,"sheet_cells":100000,"rows_first":2000,"rows_last":500,"rows_between":2000,"halvings":0,"cell_chars":16384,"cell_head_chars":4096},"cells_cut":0,"cells_raw":0,"read":"whole","date_system":"1900"}

{"sheet":"Лист2","index":0,"n_rows":100,"n_cols":4,"rows_kept":100,"cut":false,"hidden":true,"merged":[]}
[]
[null,"2018-04-01",null,"Фирмы"]
[null,null,null,1]
[null,null,null,2]
[null,null,null,3]
[null,null,null,4]
[null,null,null,5]
[null,null,null,6]
[null,null,null,7]
[null,null,null,8]
[null,null,null,9]
[null,null,null,10]
[null,null,null,11]
[null,null,null,12]
[null,null,null,13]
[null,null,null,14]
[null,null,null,15]
[null,null,null,16]
[null,null,null,17]
[null,null,null,18]
[null,null,null,19]
[null,null,null,20]
[null,null,null,21]
[null,null,null,22]
[null,null,null,23]
[null,null,null,24]
[null,null,null,25]
[null,null,null,26]
[null,null,null,27]
[null,null,null,28]
[null,null,null,29]
[null,null,null,30]
[null,null,null,31]
[null,null,null,32]
[null,null,null,33]
[null,null,null,34]
[null,null,null,35]
[null,null,null,36]
[null,null,null,37]
[null,null,null,38]
[null,null,null,39]
[null,null,null,40]
[null,null,null,41]
[null,null,null,42]
[null,null,null,43]
[null,null,null,44]
[null,null,null,45]
[null,null,null,46]
[null,null,null,47]
[null,null,null,48]
[null,null,null,49]
[null,null,null,50]
[null,null,null,51]
[null,null,null,52]
[null,null,null,53]
[null,null,null,54]
[null,null,null,55]
[null,null,null,56]
[null,null,null,57]
[null,null,null,58]
[null,null,null,59]
[null,null,null,60]
[null,null,null,61]
[null,null,null,62]
[null,null,null,63]
[null,null,null,64]
[null,null,null,65]
[null,null,null,66]
[null,null,null,67]
[null,null,null,68]
[null,null,null,69]
[null,null,null,70]
[null,null,null,71]
[null,null,null,72]
[null,null,null,73]
[null,null,null,74]
[null,null,null,75]
[null,null,null,76]
[null,null,null,77]
[null,null,null,78]
[null,null,null,79]
[null,null,null,80]
[null,null,null,81]
[null,null,null,82]
[null,null,null,83]
[null,null,null,84]
[null,null,null,85]
[null,null,null,86]
[null,null,null,87]
[null,null,null,88]
[null,null,null,89]
[null,null,null,90]
[null,null,null,91]
[null,null,null,92]
[null,null,null,93]
[null,null,null,94]
[null,null,null,95]
[null,null,null,96]
[null,null,null,97]
[null,null,null,98]

{"sheet":"Лист1","index":1,"n_rows":39,"n_cols":16,"rows_kept":39,"cut":false,"hidden":false,"merged":[[7,8,7,9],[1,1,1,3],[1,4,1,9],[7,4,7,5],[7,6,7,7]]}
[]
[null,"Фирмы",null,null,18,null,null,null,null,null,null,null,"с","2018-04-07","по","2018-04-22"]
[]
[]
[]
[]
[]
[null,"Дата",null,"Факс","Время",null,"%",null,"Стоимость"]
[null,{"$f":"IF(Лист2!B2=\"\",\"\",Лист2!B2)","v":"2018-04-01"}]
[null,{"$f":"IF(B9=\"\",\"\",B9+1)","v":"2018-04-02"}]
[null,{"$f":"IF(B10=\"\",\"\",B10+1)","v":"2018-04-03"}]
[null,"2018-04-04"]
[null,"2018-04-05"]
[null,"2018-04-06"]
[null,"2018-04-07"]
[null,"2018-04-08"]
[null,"2018-04-09"]
[null,"2018-04-10"]
[null,"2018-04-11"]
[null,"2018-04-12"]
[null,"2018-04-13"]
[null,"2018-04-14"]
[null,"2018-04-15"]
[null,"2018-04-16"]
[null,"2018-04-17"]
[null,"2018-04-18"]
[null,"2018-04-19"]
[null,"2018-04-20"]
[null,"2018-04-21"]
[null,"2018-04-22"]
[null,"2018-04-23"]
[null,"2018-04-24"]
[null,"2018-04-25"]
[null,"2018-04-26"]
[null,"2018-04-27"]
[null,"2018-04-28"]
[null,"2018-04-29"]
[null,"2018-04-30"]
[null,"2018-05-01"]